[Event "Titled Tuesday Blitz November 08 Late 2022"]
[White "Leitao, Rafael"]
[Black "Winterberg, Lukas"]
[WhiteFideId "2101246"]
[BlackFideId "24622702"]
[WhiteElo "2609"]
[BlackElo "2349"]
[Result "0-1"]
[Round "06"]
[TimeControl "180+1"]
[Date "2022.11.09"]
[WhiteClock "0:00:27"]
[BlackClock "0:00:16"]

1. c4 {[%clk 0:03:00]}  e6 {[%clk 0:02:59]} 2. g3 {[%clk 0:03:00]}  d5 {[%clk 0:02:59]} 3. Bg2 {[%clk 0:03:00]}  Nf6 {[%clk 0:03:00]} 4. Nf3 {[%clk 0:03:00]}  Be7 {[%clk 0:03:00]} 5. O-O {[%clk 0:03:00]}  O-O {[%clk 0:03:01]} 6. b3 {[%clk 0:03:01]}  d4 {[%clk 0:03:00]} 7. e3 {[%clk 0:02:58]}  c5 {[%clk 0:03:00]} 8. exd4 {[%clk 0:02:58]}  cxd4 {[%clk 0:03:01]} 9. d3 {[%clk 0:02:58]}  Nc6 {[%clk 0:03:01]} 10. Na3 {[%clk 0:02:51]}  Bc5 {[%clk 0:02:55]} 11. Nc2 {[%clk 0:02:46]}  a5 {[%clk 0:02:54]} 12. Re1 {[%clk 0:02:45]}  Re8 {[%clk 0:02:54]} 13. Rb1 {[%clk 0:02:42]}  e5 {[%clk 0:02:52]} 14. Bg5 {[%clk 0:02:27]}  h6 {[%clk 0:02:42]} 15. Bxf6 {[%clk 0:02:26]}  Qxf6 {[%clk 0:02:43]} 16. Nd2 {[%clk 0:02:27]}  Bf8 {[%clk 0:02:33]} 17. a3 {[%clk 0:02:24]}  Qg6 {[%clk 0:02:24]} 18. b4 {[%clk 0:02:05]}  axb4 {[%clk 0:02:20]} 19. axb4 {[%clk 0:02:04]}  Bg4 {[%clk 0:01:53]} 20. Qc1 {[%clk 0:01:34]}  Ra2 {[%clk 0:01:13]} 21. Ne4 {[%clk 0:01:22]}  f5 {[%clk 0:00:54]} 22. Nd2 {[%clk 0:01:17]}  e4 {[%clk 0:00:39]} 23. dxe4 {[%clk 0:01:16]}  fxe4 {[%clk 0:00:36]} 24. Rxe4 {[%clk 0:00:55]}  Bf5 {[%clk 0:00:28]} 25. Qe1 {[%clk 0:00:31]}  Bxe4 {[%clk 0:00:22]} 26. Bxe4 {[%clk 0:00:31]}  Rxe4 {[%clk 0:00:20]} 27. Nxe4 {[%clk 0:00:31]}  Rxc2 {[%clk 0:00:20]} 28. b5 {[%clk 0:00:31]}  Ne5 {[%clk 0:00:20]} 29. Kg2 {[%clk 0:00:27]}  Nd3 {[%clk 0:00:16]} 0-1


[Site "https://www.chess.com"]

[Event "Titled Tuesday Blitz November 08 Late 2022"]
[White "Leschinsky, Gary"]
[Black "Kumala, Aleksander"]
[WhiteFideId "30951321"]
[BlackFideId "1141880"]
[WhiteElo "1855"]
[BlackElo "2269"]
[Result "1-0"]
[Round "06"]
[TimeControl "180+1"]
[Date "2022.11.09"]
[WhiteClock "0:00:27"]
[BlackClock "0:00:16"]

1. d4 {[%clk 0:02:59]}  Nf6 {[%clk 0:03:00]} 2. c4 {[%clk 0:03:00]}  e5 {[%clk 0:03:00]} 3. dxe5 {[%clk 0:03:00]}  Ng4 {[%clk 0:03:01]} 4. Bf4 {[%clk 0:02:59]}  Bb4+ {[%clk 0:03:01]} 5. Nd2 {[%clk 0:02:53]}  Nc6 {[%clk 0:03:01]} 6. Nf3 {[%clk 0:02:52]}  Qe7 {[%clk 0:03:01]} 7. a3 {[%clk 0:02:47]}  Ncxe5 {[%clk 0:03:01]} 8. Nxe5 {[%clk 0:02:45]}  Nxe5 {[%clk 0:03:01]} 9. e3 {[%clk 0:02:45]}  Bc5 {[%clk 0:02:58]} 10. b4 {[%clk 0:02:32]}  Bd4 {[%clk 0:02:58]} 11. Rb1 {[%clk 0:02:24]}  d6 {[%clk 0:02:58]} 12. Be2 {[%clk 0:02:22]}  Ng6 {[%clk 0:02:59]} 13. Bg3 {[%clk 0:02:17]}  Be5 {[%clk 0:02:59]} 14. O-O {[%clk 0:02:15]}  O-O {[%clk 0:02:58]} 15. Qc2 {[%clk 0:02:11]}  b6 {[%clk 0:02:49]} 16. Bf3 {[%clk 0:02:06]}  Rb8 {[%clk 0:02:49]} 17. Rbc1 {[%clk 0:02:06]}  Bb7 {[%clk 0:02:42]} 18. Bxb7 {[%clk 0:02:02]}  Rxb7 {[%clk 0:02:42]} 19. Bxe5 {[%clk 0:02:01]}  Qxe5 {[%clk 0:02:37]} 20. Qc3 {[%clk 0:02:00]}  c5 {[%clk 0:02:27]} 21. Nf3 {[%clk 0:01:53]}  Qxc3 {[%clk 0:02:15]} 22. Rxc3 {[%clk 0:01:53]}  cxb4 {[%clk 0:02:16]} 23. axb4 {[%clk 0:01:52]}  Rc7 {[%clk 0:02:16]} 24. Rd1 {[%clk 0:01:52]}  Rd8 {[%clk 0:02:11]} 25. e4 {[%clk 0:01:31]}  Kf8 {[%clk 0:02:10]} 26. Nd4 {[%clk 0:01:29]}  Rdc8 {[%clk 0:02:09]} 27. Rdc1 {[%clk 0:01:26]}  Ne5 {[%clk 0:02:06]} 28. Nb5 {[%clk 0:01:17]}  Rxc4 {[%clk 0:02:04]} 29. Rxc4 {[%clk 0:01:18]}  Rxc4 {[%clk 0:02:02]} 30. Rxc4 {[%clk 0:01:14]}  Nxc4 {[%clk 0:02:02]} 31. Nxa7 {[%clk 0:01:15]}  Ke7 {[%clk 0:01:56]} 32. f3 {[%clk 0:01:14]}  Kd7 {[%clk 0:01:48]} 33. Nb5 {[%clk 0:01:12]}  Ne3 {[%clk 0:01:43]} 34. Nc3 {[%clk 0:01:10]}  Kc6 {[%clk 0:01:41]} 35. Kf2 {[%clk 0:01:08]}  Nc2 {[%clk 0:01:40]} 36. Nd5 {[%clk 0:00:59]}  Kb5 {[%clk 0:01:39]} 37. Ne7 {[%clk 0:00:54]}  Kxb4 {[%clk 0:01:35]} 38. Nf5 {[%clk 0:00:53]}  Kc5 {[%clk 0:01:26]} 39. Nxg7 {[%clk 0:00:52]}  b5 {[%clk 0:01:25]} 40. Ke2 {[%clk 0:00:52]}  b4 {[%clk 0:01:21]} 41. Kd2 {[%clk 0:00:53]}  Nd4 {[%clk 0:01:16]} 42. Ne8 {[%clk 0:00:51]}  d5 {[%clk 0:01:02]} 43. exd5 {[%clk 0:00:49]}  Kxd5 {[%clk 0:01:03]} 44. Nf6+ {[%clk 0:00:50]}  Kc4 {[%clk 0:01:04]} 45. Nxh7 {[%clk 0:00:49]}  b3 {[%clk 0:00:57]} 46. Kc1 {[%clk 0:00:48]}  Kc3 {[%clk 0:00:57]} 47. Nf6 {[%clk 0:00:44]}  b2+ {[%clk 0:00:51]} 48. Kb1 {[%clk 0:00:37]}  Nb5 {[%clk 0:00:35]} 49. Ne4+ {[%clk 0:00:36]}  Kb3 {[%clk 0:00:28]} 50. Nc5+ {[%clk 0:00:34]}  Kc4 {[%clk 0:00:25]} 51. Na4 {[%clk 0:00:32]}  Kd3 {[%clk 0:00:14]} 52. Kxb2 {[%clk 0:00:30]}  Ke2 {[%clk 0:00:14]} 53. Nc3+ {[%clk 0:00:30]}  Nxc3 {[%clk 0:00:12]} 54. Kxc3 {[%clk 0:00:30]}  Kf2 {[%clk 0:00:13]} 55. h4 {[%clk 0:00:28]}  Kxg2 {[%clk 0:00:13]} 56. h5 {[%clk 0:00:28]}  f5 {[%clk 0:00:14]} 57. h6 {[%clk 0:00:29]}  f4 {[%clk 0:00:14]} 58. h7 {[%clk 0:00:30]}  Kxf3 {[%clk 0:00:15]} 59. h8=Q {[%clk 0:00:31]}  Ke2 {[%clk 0:00:15]} 60. Qe5+ {[%clk 0:00:29]}  Kf3 {[%clk 0:00:16]} 61. Kd3 {[%clk 0:00:29]}  Kg3 {[%clk 0:00:16]} 62. Ke4 {[%clk 0:00:27]} 1-0


[Site "https://www.chess.com"]

[Event "Titled Tuesday Blitz November 08 Late 2022"]
[White "Levine, David"]
[Black "Viana Da Costa, Fernando"]
[WhiteFideId "2011611"]
[BlackFideId "2111900"]
[WhiteElo "2195"]
[BlackElo "2259"]
[Result "0-1"]
[Round "06"]
[TimeControl "180+1"]
[Date "2022.11.09"]
[WhiteClock "0:00:01"]
[BlackClock "0:00:41"]

1. d4 {[%clk 0:03:00]}  Nf6 {[%clk 0:02:59]} 2. c4 {[%clk 0:03:00]}  e6 {[%clk 0:02:59]} 3. g3 {[%clk 0:03:00]}  d5 {[%clk 0:02:59]} 4. Bg2 {[%clk 0:03:00]}  Be7 {[%clk 0:02:59]} 5. Nf3 {[%clk 0:03:00]}  O-O {[%clk 0:02:59]} 6. O-O {[%clk 0:03:00]}  c6 {[%clk 0:02:58]} 7. Qc2 {[%clk 0:02:57]}  b6 {[%clk 0:02:57]} 8. Nbd2 {[%clk 0:02:56]}  Nbd7 {[%clk 0:02:57]} 9. e4 {[%clk 0:02:57]}  Bb7 {[%clk 0:02:57]} 10. e5 {[%clk 0:02:53]}  Ne8 {[%clk 0:02:57]} 11. cxd5 {[%clk 0:02:51]}  cxd5 {[%clk 0:02:57]} 12. Nb1 {[%clk 0:02:43]}  Rc8 {[%clk 0:02:56]} 13. Nc3 {[%clk 0:02:38]}  b5 {[%clk 0:02:56]} 14. Qd1 {[%clk 0:02:31]}  b4 {[%clk 0:02:51]} 15. Ne2 {[%clk 0:02:30]}  Nc7 {[%clk 0:02:48]} 16. Re1 {[%clk 0:02:27]}  Nb5 {[%clk 0:02:47]} 17. h4 {[%clk 0:02:24]}  Qb6 {[%clk 0:02:44]} 18. h5 {[%clk 0:02:23]}  Qc6 {[%clk 0:02:12]} 19. h6 {[%clk 0:02:16]}  g6 {[%clk 0:02:12]} 20. Qd2 {[%clk 0:02:08]}  Qc2 {[%clk 0:02:04]} 21. Qf4 {[%clk 0:02:08]}  Qf5 {[%clk 0:02:04]} 22. Qe3 {[%clk 0:02:01]}  Qe4 {[%clk 0:01:57]} 23. Qxe4 {[%clk 0:01:54]}  dxe4 {[%clk 0:01:58]} 24. Nd2 {[%clk 0:01:55]}  Nb6 {[%clk 0:01:50]} 25. Nxe4 {[%clk 0:01:52]}  Nd5 {[%clk 0:01:48]} 26. Bd2 {[%clk 0:01:46]}  Rc2 {[%clk 0:01:43]} 27. a4 {[%clk 0:01:36]}  bxa3 {[%clk 0:01:40]} 28. bxa3 {[%clk 0:01:36]}  Nxa3 {[%clk 0:01:34]} 29. Rec1 {[%clk 0:01:16]}  Rfc8 {[%clk 0:01:29]} 30. Rxc2 {[%clk 0:01:12]}  Rxc2 {[%clk 0:01:30]} 31. Rc1 {[%clk 0:01:12]}  Rxc1+ {[%clk 0:01:26]} 32. Bxc1 {[%clk 0:01:12]}  Nc2 {[%clk 0:01:23]} 33. Nd6 {[%clk 0:00:49]}  Bc6 {[%clk 0:01:19]} 34. Nc8 {[%clk 0:00:46]}  Bd8 {[%clk 0:01:02]} 35. Nxa7 {[%clk 0:00:44]}  Bd7 {[%clk 0:00:59]} 36. Nf4 {[%clk 0:00:07]}  Nxf4 {[%clk 0:00:49]} 37. Bxf4 {[%clk 0:00:06]}  Nxd4 {[%clk 0:00:50]} 38. Bb7 {[%clk 0:00:02]}  Bb6 {[%clk 0:00:47]} 39. Nc8 {[%clk 0:00:01]}  Bc5 {[%clk 0:00:45]} 40. Kg2 {[%clk 0:00:01]}  Nc6 {[%clk 0:00:41]} 0-1


[Site "https://www.chess.com"]

[Event "Titled Tuesday Blitz November 08 Late 2022"]
[White "Martinez Alcantara, Jose Eduardo"]
[Black "Urazayev, Arystanbek"]
[WhiteFideId "3805662"]
[BlackFideId "13709810"]
[WhiteElo "2705"]
[BlackElo "2441"]
[Result "0-1"]
[Round "06"]
[TimeControl "180+1"]
[Date "2022.11.08"]
[WhiteClock "0:00:26"]
[BlackClock "0:01:29"]

1. e4 {[%clk 0:02:59]}  c5 {[%clk 0:03:00]} 2. Nf3 {[%clk 0:03:00]}  e6 {[%clk 0:03:01]} 3. c3 {[%clk 0:03:00]}  d5 {[%clk 0:03:00]} 4. exd5 {[%clk 0:03:01]}  exd5 {[%clk 0:03:01]} 5. d4 {[%clk 0:03:02]}  Nc6 {[%clk 0:03:02]} 6. Bb5 {[%clk 0:03:02]}  Nf6 {[%clk 0:03:02]} 7. O-O {[%clk 0:03:03]}  Be7 {[%clk 0:03:03]} 8. dxc5 {[%clk 0:03:03]}  Bxc5 {[%clk 0:03:04]} 9. Nbd2 {[%clk 0:03:03]}  O-O {[%clk 0:03:04]} 10. Nb3 {[%clk 0:03:04]}  Bb6 {[%clk 0:03:04]} 11. Bg5 {[%clk 0:03:05]}  h6 {[%clk 0:03:05]} 12. Bxf6 {[%clk 0:03:05]}  Qxf6 {[%clk 0:03:05]} 13. Qxd5 {[%clk 0:03:04]}  Be6 {[%clk 0:03:05]} 14. Qe4 {[%clk 0:02:50]}  Bf5 {[%clk 0:03:03]} 15. Qh4 {[%clk 0:02:26]}  g5 {[%clk 0:03:03]} 16. Qa4 {[%clk 0:02:26]}  Rad8 {[%clk 0:02:54]} 17. Rae1 {[%clk 0:02:02]}  g4 {[%clk 0:02:45]} 18. Bxc6 {[%clk 0:01:51]}  bxc6 {[%clk 0:02:46]} 19. Ne5 {[%clk 0:01:51]}  Rfe8 {[%clk 0:02:31]} 20. Nxg4 {[%clk 0:01:06]}  Qh4 {[%clk 0:02:13]} 21. Rxe8+ {[%clk 0:01:03]}  Rxe8 {[%clk 0:02:13]} 22. h3 {[%clk 0:01:03]}  Bxg4 {[%clk 0:01:50]} 23. Qxg4+ {[%clk 0:01:02]}  Qxg4 {[%clk 0:01:50]} 24. hxg4 {[%clk 0:01:03]}  Re2 {[%clk 0:01:50]} 25. Nd4 {[%clk 0:01:04]}  Rxb2 {[%clk 0:01:50]} 26. Nxc6 {[%clk 0:00:42]}  Rxa2 {[%clk 0:01:50]} 27. Ne7+ {[%clk 0:00:40]}  Kh7 {[%clk 0:01:47]} 28. Nd5 {[%clk 0:00:40]}  Bc5 {[%clk 0:01:44]} 29. Nf6+ {[%clk 0:00:41]}  Kg6 {[%clk 0:01:44]} 30. Ne4 {[%clk 0:00:42]}  Bb6 {[%clk 0:01:45]} 31. Rd1 {[%clk 0:00:42]}  Re2 {[%clk 0:01:45]} 32. Rd6+ {[%clk 0:00:28]}  Kg7 {[%clk 0:01:44]} 33. Ng3 {[%clk 0:00:27]}  Bxf2+ {[%clk 0:01:30]} 34. Kf1 {[%clk 0:00:26]}  Bxg3 {[%clk 0:01:30]} 35. Rd1 {[%clk 0:00:14]}  Rf2+ {[%clk 0:01:28]} 36. Kg1 {[%clk 0:00:15]}  a5 {[%clk 0:01:28]} 37. c4 {[%clk 0:00:16]}  Rc2 {[%clk 0:01:28]} 38. Ra1 {[%clk 0:00:17]}  Rxc4 {[%clk 0:01:26]} 39. Kf1 {[%clk 0:00:17]}  Re4 {[%clk 0:01:25]} 40. g5 {[%clk 0:00:17]}  h5 {[%clk 0:01:25]} 41. g6 {[%clk 0:00:17]}  fxg6 {[%clk 0:01:22]} 42. Rd1 {[%clk 0:00:18]}  Re1+ {[%clk 0:01:22]} 43. Rxe1 {[%clk 0:00:18]}  Bxe1 {[%clk 0:01:23]} 44. Ke2 {[%clk 0:00:18]}  a4 {[%clk 0:01:23]} 45. Kd1 {[%clk 0:00:19]}  a3 {[%clk 0:01:23]} 46. Kc2 {[%clk 0:00:20]}  Bb4 {[%clk 0:01:23]} 47. Kb1 {[%clk 0:00:21]}  Bf8 {[%clk 0:01:24]} 48. Ka2 {[%clk 0:00:22]}  g5 {[%clk 0:01:25]} 49. g3 {[%clk 0:00:22]}  g4 {[%clk 0:01:26]} 50. Kb3 {[%clk 0:00:22]}  Kg6 {[%clk 0:01:27]} 51. Kc2 {[%clk 0:00:22]}  Kf5 {[%clk 0:01:28]} 52. Kd3 {[%clk 0:00:23]}  a2 {[%clk 0:01:28]} 53. Ke2 {[%clk 0:00:24]}  a1=Q {[%clk 0:01:28]} 54. Kf2 {[%clk 0:00:25]}  Qc3 {[%clk 0:01:28]} 55. Kg2 {[%clk 0:00:25]}  Bd6 {[%clk 0:01:29]} 56. Kh1 {[%clk 0:00:26]}  h4 {[%clk 0:01:29]} 57. gxh4 {[%clk 0:00:26]}  Qh3+ {[%clk 0:01:29]} 0-1


[Site "https://www.chess.com"]

[Event "Titled Tuesday Blitz November 08 Late 2022"]
[White "Melikhov, Evgeny V."]
[Black "Thiel, Thomas"]
[WhiteFideId "4122046"]
[BlackFideId "4615964"]
[WhiteElo "2169"]
[BlackElo "2208"]
[Result "0-1"]
[Round "06"]
[TimeControl "180+1"]
[Date "2022.11.09"]
[WhiteClock "0:00:07"]
[BlackClock "0:01:31"]

1. d4 {[%clk 0:03:00]}  Nf6 {[%clk 0:02:57]} 2. c4 {[%clk 0:03:00]}  g6 {[%clk 0:02:56]} 3. Nc3 {[%clk 0:02:53]}  d5 {[%clk 0:02:56]} 4. cxd5 {[%clk 0:02:52]}  Nxd5 {[%clk 0:02:57]} 5. e4 {[%clk 0:02:52]}  Nxc3 {[%clk 0:02:56]} 6. bxc3 {[%clk 0:02:53]}  Bg7 {[%clk 0:02:56]} 7. Bc4 {[%clk 0:02:54]}  c5 {[%clk 0:02:55]} 8. Ne2 {[%clk 0:02:54]}  O-O {[%clk 0:02:53]} 9. Be3 {[%clk 0:02:54]}  Nc6 {[%clk 0:02:49]} 10. h4 {[%clk 0:02:54]}  cxd4 {[%clk 0:02:47]} 11. cxd4 {[%clk 0:02:53]}  Qa5+ {[%clk 0:02:46]} 12. Kf1 {[%clk 0:02:52]}  Qa3 {[%clk 0:02:46]} 13. Qc1 {[%clk 0:02:52]}  Qxc1+ {[%clk 0:02:34]} 14. Rxc1 {[%clk 0:02:51]}  Rd8 {[%clk 0:02:29]} 15. e5 {[%clk 0:02:13]}  Nb4 {[%clk 0:02:28]} 16. h5 {[%clk 0:02:07]}  Nd5 {[%clk 0:02:25]} 17. Bxd5 {[%clk 0:01:40]}  Rxd5 {[%clk 0:02:22]} 18. h6 {[%clk 0:01:41]}  Bf8 {[%clk 0:02:21]} 19. f3 {[%clk 0:01:29]}  Ra5 {[%clk 0:02:20]} 20. Rc2 {[%clk 0:01:26]}  Be6 {[%clk 0:02:18]} 21. Kf2 {[%clk 0:01:21]}  Rxa2 {[%clk 0:02:17]} 22. Rxa2 {[%clk 0:01:20]}  Bxa2 {[%clk 0:02:17]} 23. Rc1 {[%clk 0:01:20]}  Bd5 {[%clk 0:02:13]} 24. Nc3 {[%clk 0:01:18]}  e6 {[%clk 0:02:08]} 25. Nxd5 {[%clk 0:01:17]}  exd5 {[%clk 0:02:08]} 26. Rc7 {[%clk 0:01:15]}  a5 {[%clk 0:02:07]} 27. Rxb7 {[%clk 0:01:15]}  a4 {[%clk 0:02:08]} 28. Rb2 {[%clk 0:01:15]}  a3 {[%clk 0:02:08]} 29. Ra2 {[%clk 0:01:15]}  Rb8 {[%clk 0:02:05]} 30. Bc1 {[%clk 0:01:14]}  Rb3 {[%clk 0:02:03]} 31. Ke2 {[%clk 0:01:13]}  Bxh6 {[%clk 0:01:54]} 32. Bxa3 {[%clk 0:01:07]}  Re3+ {[%clk 0:01:52]} 33. Kf2 {[%clk 0:01:05]}  Rd3 {[%clk 0:01:52]} 34. Bc5 {[%clk 0:01:03]}  Rd2+ {[%clk 0:01:45]} 35. Rxd2 {[%clk 0:00:59]}  Bxd2 {[%clk 0:01:46]} 36. g4 {[%clk 0:00:55]}  Bf4 {[%clk 0:01:42]} 37. Bb4 {[%clk 0:00:48]}  Kg7 {[%clk 0:01:41]} 38. Ke2 {[%clk 0:00:38]}  h5 {[%clk 0:01:41]} 39. gxh5 {[%clk 0:00:22]}  gxh5 {[%clk 0:01:42]} 40. Be1 {[%clk 0:00:15]}  Kg6 {[%clk 0:01:40]} 41. Bh4 {[%clk 0:00:14]}  Kf5 {[%clk 0:01:40]} 42. Bd8 {[%clk 0:00:13]}  Bg5 {[%clk 0:01:39]} 43. Bc7 {[%clk 0:00:12]}  h4 {[%clk 0:01:37]} 44. Kf2 {[%clk 0:00:12]}  Bf4 {[%clk 0:01:37]} 45. Kg2 {[%clk 0:00:10]}  Be3 {[%clk 0:01:37]} 46. Bb6 {[%clk 0:00:10]}  Kf4 {[%clk 0:01:35]} 47. Kh3 {[%clk 0:00:10]}  Kxf3 {[%clk 0:01:34]} 48. Kxh4 {[%clk 0:00:10]}  Ke4 {[%clk 0:01:35]} 49. Kg4 {[%clk 0:00:09]}  Bxd4 {[%clk 0:01:35]} 50. Bxd4 {[%clk 0:00:07]}  Kxd4 {[%clk 0:01:35]} 51. Kf5 {[%clk 0:00:08]}  Ke3 {[%clk 0:01:34]} 52. Kf6 {[%clk 0:00:07]}  Ke4 {[%clk 0:01:31]} 0-1


[Site "https://www.chess.com"]

[Event "Titled Tuesday Blitz November 08 Late 2022"]
[White "Melkumyan, Hrant"]
[Black "Maksimovic, Bojan"]
[WhiteFideId "13302485"]
[BlackFideId "14408120"]
[WhiteElo "2604"]
[BlackElo "2447"]
[Result "1-0"]
[Round "06"]
[TimeControl "180+1"]
[Date "2022.11.08"]
[WhiteClock "0:01:17"]
[BlackClock "0:00:01"]

1. d4 {[%clk 0:03:00]}  Nf6 {[%clk 0:02:58]} 2. c4 {[%clk 0:03:01]}  g6 {[%clk 0:02:58]} 3. Nc3 {[%clk 0:03:01]}  Bg7 {[%clk 0:02:59]} 4. e4 {[%clk 0:03:02]}  d6 {[%clk 0:03:00]} 5. Be2 {[%clk 0:03:03]}  Nbd7 {[%clk 0:03:00]} 6. h4 {[%clk 0:03:02]}  c5 {[%clk 0:02:56]} 7. d5 {[%clk 0:03:02]}  h6 {[%clk 0:02:40]} 8. Be3 {[%clk 0:02:58]}  b5 {[%clk 0:02:38]} 9. cxb5 {[%clk 0:02:58]}  a6 {[%clk 0:02:38]} 10. a4 {[%clk 0:02:57]}  axb5 {[%clk 0:02:37]} 11. Bxb5 {[%clk 0:02:56]}  Ba6 {[%clk 0:02:37]} 12. Nf3 {[%clk 0:02:48]}  Bxb5 {[%clk 0:02:33]} 13. axb5 {[%clk 0:02:48]}  O-O {[%clk 0:02:34]} 14. Nd2 {[%clk 0:02:42]}  Rxa1 {[%clk 0:02:27]} 15. Qxa1 {[%clk 0:02:42]}  Ng4 {[%clk 0:02:27]} 16. Bf4 {[%clk 0:02:30]}  Bd4 {[%clk 0:02:27]} 17. Bg3 {[%clk 0:02:27]}  Nde5 {[%clk 0:02:26]} 18. O-O {[%clk 0:02:22]}  Nd3 {[%clk 0:02:25]} 19. Nf3 {[%clk 0:02:16]}  Bg7 {[%clk 0:02:05]} 20. Qb1 {[%clk 0:02:02]}  c4 {[%clk 0:02:05]} 21. Ne1 {[%clk 0:01:54]}  Nxe1 {[%clk 0:01:18]} 22. Qxe1 {[%clk 0:01:47]}  Qb6 {[%clk 0:01:18]} 23. Qe2 {[%clk 0:01:47]}  Ne5 {[%clk 0:00:42]} 24. Bxe5 {[%clk 0:01:47]}  Bxe5 {[%clk 0:00:43]} 25. Qxc4 {[%clk 0:01:47]}  Qb8 {[%clk 0:00:40]} 26. g3 {[%clk 0:01:37]}  Rc8 {[%clk 0:00:39]} 27. Qd3 {[%clk 0:01:37]}  Qb6 {[%clk 0:00:39]} 28. Kg2 {[%clk 0:01:36]}  Qc5 {[%clk 0:00:40]} 29. Rc1 {[%clk 0:01:35]}  Qc4 {[%clk 0:00:27]} 30. Qxc4 {[%clk 0:01:25]}  Rxc4 {[%clk 0:00:28]} 31. Na2 {[%clk 0:01:26]}  Ra4 {[%clk 0:00:07]} 32. b6 {[%clk 0:01:26]}  Rxa2 {[%clk 0:00:08]} 33. b7 {[%clk 0:01:24]}  Rxb2 {[%clk 0:00:08]} 34. Rc8+ {[%clk 0:01:24]}  Kg7 {[%clk 0:00:08]} 35. b8=Q {[%clk 0:01:25]}  Rxb8 {[%clk 0:00:09]} 36. Rxb8 {[%clk 0:01:26]}  f5 {[%clk 0:00:09]} 37. f4 {[%clk 0:01:22]}  Bd4 {[%clk 0:00:07]} 38. Kf3 {[%clk 0:01:23]}  Kf6 {[%clk 0:00:05]} 39. Rf8+ {[%clk 0:01:21]}  Kg7 {[%clk 0:00:05]} 40. Rc8 {[%clk 0:01:22]}  Kf7 {[%clk 0:00:06]} 41. Rc4 {[%clk 0:01:19]}  Bb2 {[%clk 0:00:06]} 42. Rc2 {[%clk 0:01:19]}  Bd4 {[%clk 0:00:06]} 43. h5 {[%clk 0:01:17]}  gxh5 {[%clk 0:00:01]} 44. exf5 {[%clk 0:01:17]}  Kf6 {[%clk 0:00:02]} 45. Ke4 {[%clk 0:01:17]}  Bc5 {[%clk 0:00:01]} 46. Rh2 {[%clk 0:01:17]}  Bb4 {[%clk 0:00:01]} 47. Rxh5 {[%clk 0:01:17]} 1-0


[Site "https://www.chess.com"]